[Event "DVM U12w 2023"]
[Site "Magdeburg"]
[Date "2023.12.30"]
[Round "7"]
[White "Funke, Luise"]
[Black "Winkler, Anni"]
[Result "0-1"]
[WhiteElo "1018"]
[BlackElo "1038"]
[PlyCount "50"]
[EventDate "2022.12.27"]
[EventType "team-tourn"]
[EventRounds "7"]
[EventCountry "GER"]
[TimeControl "40/5400+30:1800+30"]
[WhiteClock "0:35:50"]
[BlackClock "1:08:12"]

1. e4 {[%emt 0:00:02]} c5 {[%emt 0:00:13]} 2. Nf3 {[%emt 0:00:08]} Nc6 {[%emt 0:00:15]} 3. d4 {[%emt 0:00:10]} cxd4 {[%emt 0:00:20]} 4. Nxd4 {[%emt 0:00:10]} Nf6 {[%emt 0:00:16]} 5. Nc3 {[%emt 0:00:09]} d6 {[%emt 0:00:49]} 6. f3 {[%emt 0:00:39]} e6 {[%emt 0:00:26]} 7. Be3 {[%emt 0:00:10]} Be7 {[%emt 0:00:57]} 8. Qd2 {[%emt 0:00:20]} a6 {[%emt 0:00:21]} 9. O-O-O {[%emt 0:00:15]} Qc7 {[%emt 0:00:21]} 10. g4 {[%emt 0:00:35]} b5 {[%emt 0:00:16]} 11. g5 {[%emt 0:00:25]} Nh5 {[%emt 0:01:48]} 12. Nce2 {[%emt 0:06:19]} Bb7 {[%emt 0:09:19]} 13. Bh3 {[%emt 0:02:41]} Rc8 {[%emt 0:02:24]} 14. Bg4 {[%emt 0:00:45]} g6 {[%emt 0:01:26]} 15. Bxh5 {[%emt 0:06:59]} gxh5 {[%emt 0:00:27]} 16. Nxc6 {[%emt 0:10:20]} Qxc6 {[%emt 0:00:44]} 17. Bd4 {[%emt 0:00:18]} Rg8 {[%emt 0:00:30]} 18. Be3 {[%emt 0:01:42]} Rc7 {[%emt 0:02:02]} 19. Nd4 {[%emt 0:03:28]} Qd7 {[%emt 0:00:47]} 20. f4 {[%emt 0:03:26]} Bxe4 {[%emt 0:00:24]} 21. Rhg1 {[%emt 0:00:58]} Qc8 {[%emt 0:00:27]} 22. Kb1 {[%emt 0:15:55]} e5 {[%emt 0:06:18]} 23. fxe5 {[%emt 0:03:09]} dxe5 {[%emt 0:00:12]} 24. Nb3 {[%emt 0:05:23]} Rxc2 {[%emt 0:01:35]} 25. Qa5 {[%emt 0:02:44]} Rc1# {[%emt 0:02:11] normal} 0-1

[Event "DVM U12w 2023"]
[Site "Magdeburg"]
[Date "2023.12.30"]
[Round "7"]
[White "Haas, Valentina"]
[Black "Nikitina, Alisa"]
[Result "1-0"]
[WhiteElo "1010"]
[BlackElo "1004"]
[PlyCount "49"]
[EventDate "2022.12.27"]
[EventType "team-tourn"]
[EventRounds "7"]
[EventCountry "GER"]
[TimeControl "40/5400+30:1800+30"]
[WhiteClock "1:21:23"]
[BlackClock "0:24:38"]

1. d4 {[%emt 0:00:01]} d5 {[%emt 0:00:28]} 2. e3 {[%emt 0:00:05]} Nc6 {[%emt 0:02:45]} 3. Bd3 {[%emt 0:00:16]} Nf6 {[%emt 0:00:52]} 4. f4 {[%emt 0:00:22]} Bg4 {[%emt 0:01:40]} 5. Nf3 {[%emt 0:00:12]} e6 {[%emt 0:00:29]} 6. h3 {[%emt 0:00:07]} Bf5 {[%emt 0:02:14]} 7. O-O {[%emt 0:00:14]} Bd6 {[%emt 0:01:08]} 8. Ne5 {[%emt 0:00:10]} O-O {[%emt 0:02:01]} 9. c3 {[%emt 0:01:25]} a6 {[%emt 0:07:06]} 10. Bxf5 {[%emt 0:04:43]} exf5 {[%emt 0:00:28]} 11. Qe1 {[%emt 0:00:23]} Ne4 {[%emt 0:05:35]} 12. Nd2 {[%emt 0:02:45]} Nf6 {[%emt 0:04:55]} 13. Qh4 {[%emt 0:02:09]} b5 {[%emt 0:07:17]} 14. Rf3 {[%emt 0:00:38]} Be7 {[%emt 0:10:02]} 15. Nxc6 {[%emt 0:01:08]} Qe8 {[%emt 0:09:28]} 16. Nxe7+ {[%emt 0:00:37]} Qxe7 {[%emt 0:00:16]} 17. Rg3 {[%emt 0:00:23]} Qd8 {[%emt 0:04:13]} 18. Qh6 {[%emt 0:00:25]} g6 {[%emt 0:01:16]} 19. Nf3 {[%emt 0:02:44]} c6 {[%emt 0:06:05]} 20. Nh4 {[%emt 0:00:58]} Nh5 {[%emt 0:00:38]} 21. Nxf5 {[%emt 0:00:41]} Qf6 {[%emt 0:02:51]} 22. Rg5 {[%emt 0:00:06]} Qh8 {[%emt 0:03:09]} 23. b3 {[%emt 0:00:37]} a5 {[%emt 0:00:38]} 24. Rxh5 {[%emt 0:00:15]} a4 {[%emt 0:02:18]} 25. Ne7# {[%emt 0:00:13] normal} 1-0

[Event "DVM U12w 2023"]
[Site "Magdeburg"]
[Date "2023.12.30"]
[Round "7"]
[White "Grey, Paula"]
[Black "Rempel, Katharina"]
[Result "1-0"]
[WhiteElo "1008"]
[BlackElo "867"]
[PlyCount "93"]
[EventDate "2022.12.27"]
[EventType "team-tourn"]
[EventRounds "7"]
[EventCountry "GER"]
[TimeControl "40/5400+30:1800+30"]
[WhiteClock "0:17:48"]
[BlackClock "1:11:11"]

1. e4 {[%emt 0:00:01]} e5 {[%emt 0:00:02]} 2. Nf3 {[%emt 0:00:09]} Nc6 {[%emt 0:00:07]} 3. Bc4 {[%emt 0:00:19]} Bc5 {[%emt 0:00:10]} 4. Nc3 {[%emt 0:00:28]} d6 {[%emt 0:00:08]} 5. h3 {[%emt 0:00:14]} Nf6 {[%emt 0:00:09]} 6. d3 {[%emt 0:00:32]} Be6 {[%emt 0:00:25]} 7. Bxe6 {[%emt 0:00:25]} fxe6 {[%emt 0:00:07]} 8. Be3 {[%emt 0:03:24]} Bb4 {[%emt 0:00:39]} 9. Bd2 {[%emt 0:02:14]} Bxc3 {[%emt 0:01:51]} 10. Bxc3 {[%emt 0:00:36]} Qd7 {[%emt 0:00:40]} 11. Qd2 {[%emt 0:02:24]} O-O-O {[%emt 0:00:11]} 12. O-O-O {[%emt 0:01:32]} Rhf8 {[%emt 0:02:21]} 13. Kb1 {[%emt 0:07:45]} h6 {[%emt 0:00:48]} 14. Qe2 {[%emt 0:03:53]} Qf7 {[%emt 0:03:30]} 15. Rhf1 {[%emt 0:05:38]} Nh5 {[%emt 0:04:30]} 16. Nh2 {[%emt 0:06:20]} Nf4 {[%emt 0:00:37]} 17. Qf3 {[%emt 0:01:17]} Nd4 {[%emt 0:02:23]} 18. Bxd4 {[%emt 0:00:34]} exd4 {[%emt 0:00:14]} 19. g3 {[%emt 0:02:43]} Nxh3 {[%emt 0:01:14]} 20. Qxf7 {[%emt 0:01:29]} Rxf7 {[%emt 0:00:13]} 21. f4 {[%emt 0:05:50]} d5 {[%emt 0:00:51]} 22. e5 {[%emt 0:03:21]} g5 {[%emt 0:01:38]} 23. fxg5 {[%emt 0:01:26]} Rf2 {[%emt 0:00:48]} 24. Rxf2 {[%emt 0:01:12]} Nxf2 {[%emt 0:00:12]} 25. Rf1 {[%emt 0:01:08]} Nh3 {[%emt 0:00:33]} 26. gxh6 {[%emt 0:02:56]} Ng5 {[%emt 0:01:21]} 27. Rh1 {[%emt 0:11:14]} Rh8 {[%emt 0:00:37]} 28. Ng4 {[%emt 0:03:19]} Nf7 {[%emt 0:00:36]} 29. h7 {[%emt 0:02:07]} Ng5 {[%emt 0:00:42]} 30. Nf6 {[%emt 0:01:08]} c6 {[%emt 0:02:01]} 31. c3 {[%emt 0:04:04]} dxc3 {[%emt 0:00:11]} 32. bxc3 {[%emt 0:00:08]} c5 {[%emt 0:01:12]} 33. d4 {[%emt 0:02:05]} c4 {[%emt 0:03:55]} 34. Rh5 {[%emt 0:00:31]} Rf8 {[%emt 0:01:55]} 35. h8=Q {[%emt 0:01:16]} Rxh8 {[%emt 0:00:18]} 36. Rxh8+ {[%emt 0:00:07]} Kc7 {[%emt 0:00:12]} 37. Rg8 {[%emt 0:02:40]} Nf7 {[%emt 0:00:35]} 38. Rg7 {[%emt 0:01:35]} Kd8 {[%emt 0:00:17]} 39. g4 {[%emt 0:01:59]} Nd6 {[%emt 0:00:45]} 40. Rxb7 {[%emt 0:00:59]} Kc8 {[%emt 0:00:39]} 41. Rh7 {[%emt 0:30:25]} a6 {[%emt 0:30:16]} 42. g5 {[%emt 0:00:23]} Ne8 {[%emt 0:00:44]} 43. g6 {[%emt 0:00:39]} a5 {[%emt 0:00:19]} 44. g7 {[%emt 0:00:56]} a4 {[%emt 0:00:24]} 45. g8=R {[%emt 0:01:47]} a3 {[%emt 0:00:29]} 46. Rf8 {[%emt 0:00:30]} Kb8 {[%emt 0:00:30]} 47. Rxe8# {[%emt 0:00:30] normal} 1-0

[Event "DVM U12w 2023"]
[Site "Magdeburg"]
[Date "2023.12.30"]
[Round "7"]
[White "Kuhlmann, Naya"]
[Black "Prasannavenkatesan, Ananya"]
[Result "1-0"]
[WhiteElo "1005"]
[BlackElo "1045"]
[PlyCount "53"]
[EventDate "2022.12.27"]
[EventType "team-tourn"]
[EventRounds "7"]
[EventCountry "GER"]
[TimeControl "40/5400+30:1800+30"]
[WhiteClock "1:04:05"]
[BlackClock "1:26:03"]

1. e4 {[%emt 0:00:02]} e5 {[%emt 0:00:03]} 2. Nf3 {[%emt 0:00:06]} Nc6 {[%emt 0:00:04]} 3. Nc3 {[%emt 0:00:07]} Nf6 {[%emt 0:00:05]} 4. Bc4 {[%emt 0:00:09]} Nxe4 {[%emt 0:00:47]} 5. Bxf7+ {[%emt 0:01:34]} Kxf7 {[%emt 0:00:16]} 6. Nxe4 {[%emt 0:00:08]} Ke8 {[%emt 0:00:43]} 7. O-O {[%emt 0:02:07]} d5 {[%emt 0:00:15]} 8. Ng3 {[%emt 0:01:38]} e4 {[%emt 0:00:19]} 9. Ne1 {[%emt 0:00:35]} Bd6 {[%emt 0:00:32]} 10. Qh5+ {[%emt 0:03:02]} g6 {[%emt 0:00:14]} 11. Qxd5 {[%emt 0:00:24]} Bxg3 {[%emt 0:00:20]} 12. Qxd8+ {[%emt 0:00:17]} Kxd8 {[%emt 0:00:07]} 13. fxg3 {[%emt 0:00:07]} Bf5 {[%emt 0:00:09]} 14. d3 {[%emt 0:00:34]} exd3 {[%emt 0:00:08]} 15. cxd3 {[%emt 0:00:21]} Re8 {[%emt 0:00:27]} 16. Bg5+ {[%emt 0:00:18]} Kd7 {[%emt 0:00:08]} 17. Rd1 {[%emt 0:00:44]} Re6 {[%emt 0:01:50]} 18. Nf3 {[%emt 0:01:37]} Bg4 {[%emt 0:00:34]} 19. d4 {[%emt 0:00:26]} Nb4 {[%emt 0:01:37]} 20. a3 {[%emt 0:02:08]} Nd5 {[%emt 0:00:09]} 21. Ne5+ {[%emt 0:05:35]} Kd6 {[%emt 0:00:37]} 22. Nxg4 {[%emt 0:00:13]} h5 {[%emt 0:00:12]} 23. Ne5 {[%emt 0:03:57]} Rae8 {[%emt 0:01:45]} 24. Rde1 {[%emt 0:07:34]} c6 {[%emt 0:03:02]} 25. b4 {[%emt 0:04:11]} b5 {[%emt 0:01:04]} 26. Rc1 {[%emt 0:01:26]} a6 {[%emt 0:02:00]} 27. Rxc6# {[%emt 0:00:35] normal} 1-0

[Event "DVM U12w 2023"]
[Site "Magdeburg"]
[Date "2023.12.30"]
[Round "7"]
[White "Martin, Helene"]
[Black "Noennig, Lotte"]
[Result "0-1"]
[WhiteElo "989"]
[BlackElo "1345"]
[PlyCount "52"]
[EventDate "2022.12.27"]
[EventType "team-tourn"]
[EventRounds "7"]
[EventCountry "GER"]
[TimeControl "40/5400+30:1800+30"]
[WhiteClock "0:30:50"]
[BlackClock "0:57:30"]

1. e4 {[%emt 0:00:02]} e5 {[%emt 0:00:09]} 2. Nf3 {[%emt 0:00:04]} Nc6 {[%emt 0:00:06]} 3. Bc4 {[%emt 0:00:08]} Bc5 {[%emt 0:00:10]} 4. c3 {[%emt 0:00:07]} Nf6 {[%emt 0:00:07]} 5. d3 {[%emt 0:00:08]} d6 {[%emt 0:00:26]} 6. O-O {[%emt 0:00:07]} O-O {[%emt 0:00:20]} 7. Be3 {[%emt 0:00:08]} Bb6 {[%emt 0:00:12]} 8. b4 {[%emt 0:00:31]} a6 {[%emt 0:00:40]} 9. Qc2 {[%emt 0:02:37]} Qe7 {[%emt 0:01:28]} 10. a4 {[%emt 0:02:59]} Bg4 {[%emt 0:02:02]} 11. Nbd2 {[%emt 0:00:08]} Rad8 {[%emt 0:01:42]} 12. Bb3 {[%emt 0:04:33]} d5 {[%emt 0:02:39]} 13. exd5 {[%emt 0:03:48]} Nxd5 {[%emt 0:00:27]} 14. Rfe1 {[%emt 0:05:10]} Bxe3 {[%emt 0:03:40]} 15. fxe3 {[%emt 0:01:54]} Qf6 {[%emt 0:00:57]} 16. Kf2 {[%emt 0:01:18]} Rfe8 {[%emt 0:02:28]} 17. e4 {[%emt 0:03:56]} Nf4 {[%emt 0:00:54]} 18. Bc4 {[%emt 0:09:49]} Qg6 {[%emt 0:02:50]} 19. Rg1 {[%emt 0:10:04]} Rd6 {[%emt 0:02:27]} 20. Nb3 {[%emt 0:01:37]} Bxf3 {[%emt 0:01:24]} 21. Kxf3 {[%emt 0:04:37]} Qh5+ {[%emt 0:02:22]} 22. Ke3 {[%emt 0:05:27]} Rg6 {[%emt 0:02:16]} 23. g3 {[%emt 0:01:26]} Qh3 {[%emt 0:01:22]} 24. Qf2 {[%emt 0:03:34]} Rf6 {[%emt 0:01:06]} 25. Qc2 {[%emt 0:03:07]} Rd8 {[%emt 0:06:22]} 26. Rad1 {[%emt 0:05:21]} Qh6 {[%emt 0:07:24] normal} 0-1

[Event "DVM U12w 2023"]
[Site "Magdeburg"]
[Date "2023.12.30"]
[Round "7"]
[White "Khachaturyan, Viktoria"]
[Black "Seyedfakhari, Elena"]
[Result "1-0"]
[WhiteElo "987"]
[BlackElo "860"]
[PlyCount "41"]
[EventDate "2022.12.27"]
[EventType "team-tourn"]
[EventRounds "7"]
[EventCountry "GER"]
[TimeControl "40/5400+30:1800+30"]
[WhiteClock "1:10:00"]
[BlackClock "1:28:10"]

1. e4 {[%emt 0:00:01]} e5 {[%emt 0:00:06]} 2. Nf3 {[%emt 0:00:09]} Nc6 {[%emt 0:00:10]} 3. Nc3 {[%emt 0:00:05]} Nf6 {[%emt 0:00:12]} 4. Bc4 {[%emt 0:00:49]} Nxe4 {[%emt 0:00:23]} 5. O-O {[%emt 0:01:06]} Bb4 {[%emt 0:00:44]} 6. Nxe4 {[%emt 0:00:15]} d5 {[%emt 0:00:23]} 7. Nfg5 {[%emt 0:09:54]} O-O {[%emt 0:00:57]} 8. d4 {[%emt 0:02:06]} dxc4 {[%emt 0:00:29]} 9. c3 {[%emt 0:02:11]} Be7 {[%emt 0:00:41]} 10. f4 {[%emt 0:01:05]} exf4 {[%emt 0:00:39]} 11. Bxf4 {[%emt 0:00:18]} f5 {[%emt 0:00:43]} 12. Qh5 {[%emt 0:04:26]} h6 {[%emt 0:00:55]} 13. h4 {[%emt 0:01:04]} fxe4 {[%emt 0:00:32]} 14. Rae1 {[%emt 0:03:10]} hxg5 {[%emt 0:00:40]} 15. hxg5 {[%emt 0:00:09]} Bd6 {[%emt 0:01:02]} 16. g6 {[%emt 0:01:02]} Rxf4 {[%emt 0:01:33]} 17. Qh7+ {[%emt 0:00:55]} Kf8 {[%emt 0:00:34]} 18. Qh8+ {[%emt 0:01:04]} Ke7 {[%emt 0:00:39]} 19. Qxg7+ {[%emt 0:00:47]} Ke8 {[%emt 0:00:34]} 20. Rxf4 {[%emt 0:00:09]} Bxf4 {[%emt 0:00:24]} 21. Qf7# {[%emt 0:00:15] normal} 1-0

[Event "DVM U12w 2023"]
[Site "Magdeburg"]
[Date "2023.12.30"]
[Round "7"]
[White "Trush, Diana"]
[Black "Schmidt Guevara, Daniela"]
[Result "1-0"]
[WhiteElo "980"]
[BlackElo "1083"]
[PlyCount "39"]
[EventDate "2022.12.27"]
[EventType "team-tourn"]
[EventRounds "7"]
[EventCountry "GER"]
[TimeControl "40/5400+30:1800+30"]
[WhiteClock "1:09:07"]
[BlackClock "0:52:49"]

1. e4 {[%emt 0:00:05]} e5 {[%emt 0:00:07]} 2. Nf3 {[%emt 0:00:23]} Nc6 {[%emt 0:00:11]} 3. Bc4 {[%emt 0:00:42]} Bc5 {[%emt 0:00:38]} 4. O-O {[%emt 0:00:19]} Nf6 {[%emt 0:00:57]} 5. d4 {[%emt 0:00:49]} exd4 {[%emt 0:00:45]} 6. e5 {[%emt 0:00:39]} Ne4 {[%emt 0:03:08]} 7. Bd5 {[%emt 0:05:49]} f5 {[%emt 0:03:27]} 8. exf6 {[%emt 0:06:53]} Nxf6 {[%emt 0:00:17]} 9. Re1+ {[%emt 0:01:13]} Ne7 {[%emt 0:01:06]} 10. Ng5 {[%emt 0:01:00]} Nfxd5 {[%emt 0:01:12]} 11. Nc3 {[%emt 0:02:31]} Nxc3 {[%emt 0:01:41]} 12. bxc3 {[%emt 0:00:20]} dxc3 {[%emt 0:00:18]} 13. Qd5 {[%emt 0:00:48]} Rf8 {[%emt 0:01:20]} 14. Qxc5 {[%emt 0:00:34]} b6 {[%emt 0:01:27]} 15. Qd5 {[%emt 0:01:20]} Ba6 {[%emt 0:11:13]} 16. Nxh7 {[%emt 0:04:27]} Rf7 {[%emt 0:04:30]} 17. Qh5 {[%emt 0:00:37]} Bc4 {[%emt 0:10:03]} 18. Ng5 {[%emt 0:01:29]} Kf8 {[%emt 0:04:21]} 19. Qh8+ {[%emt 0:00:24]} Ng8 {[%emt 0:00:30]} 20. Nh7# {[%emt 0:01:01] normal} 1-0

[Event "DVM U12w 2023"]
[Site "Magdeburg"]
[Date "2023.12.30"]
[Round "7"]
[White "Poberezhna, Anna"]
[Black "Nehrukumar, Rithika"]
[Result "0-1"]
[WhiteElo "951"]
[BlackElo "989"]
[PlyCount "64"]
[EventDate "2022.12.27"]
[EventType "team-tourn"]
[EventRounds "7"]
[EventCountry "GER"]
[TimeControl "40/5400+30:1800+30"]
[WhiteClock "1:25:16"]
[BlackClock "1:21:38"]

1. e4 {[%emt 0:00:01]} e5 {[%emt 0:00:00]} 2. Nf3 {[%emt 0:00:04]} Nc6 {[%emt 0:00:00]} 3. Bc4 {[%emt 0:00:05]} Bc5 {[%emt 0:00:00]} 4. O-O {[%emt 0:00:06]} d6 {[%emt 0:00:03]} 5. h3 {[%emt 0:00:06]} h6 {[%emt 0:00:42]} 6. d3 {[%emt 0:00:10]} Nf6 {[%emt 0:00:06]} 7. Be3 {[%emt 0:00:13]} Bb6 {[%emt 0:00:57]} 8. Nc3 {[%emt 0:00:16]} Bd4 {[%emt 0:00:16]} 9. Nb5 {[%emt 0:00:50]} Bb6 {[%emt 0:01:15]} 10. c3 {[%emt 0:00:58]} a6 {[%emt 0:00:10]} 11. Na3 {[%emt 0:00:06]} O-O {[%emt 0:00:42]} 12. d4 {[%emt 0:00:33]} Nxe4 {[%emt 0:00:59]} 13. Qc2 {[%emt 0:01:58]} Bf5 {[%emt 0:01:22]} 14. Bd3 {[%emt 0:00:15]} d5 {[%emt 0:00:10]} 15. Rad1 {[%emt 0:01:26]} exd4 {[%emt 0:01:32]} 16. cxd4 {[%emt 0:00:11]} Re8 {[%emt 0:00:32]} 17. Rfe1 {[%emt 0:01:44]} Ba5 {[%emt 0:01:17]} 18. Re2 {[%emt 0:00:40]} Nb4 {[%emt 0:00:40]} 19. Qa4 {[%emt 0:01:14]} c5 {[%emt 0:03:31]} 20. dxc5 {[%emt 0:00:22]} Nxd3 {[%emt 0:01:08]} 21. Qb3 {[%emt 0:04:57]} Ndxc5 {[%emt 0:01:08]} 22. Bxc5 {[%emt 0:00:11]} Nxc5 {[%emt 0:00:31]} 23. Rxe8+ {[%emt 0:00:10]} Qxe8 {[%emt 0:00:28]} 24. Qxd5 {[%emt 0:00:08]} Rd8 {[%emt 0:01:39]} 25. Qxc5 {[%emt 0:00:49]} Rxd1+ {[%emt 0:00:16]} 26. Kh2 {[%emt 0:00:08]} Qe2 {[%emt 0:02:00]} 27. Qxf5 {[%emt 0:02:02]} Bc7+ {[%emt 0:00:14]} 28. Ne5 {[%emt 0:00:40]} Bxe5+ {[%emt 0:00:07]} 29. g3 {[%emt 0:00:13]} Qf1 {[%emt 0:02:08]} 30. Qc8+ {[%emt 0:00:09]} Kh7 {[%emt 0:00:10]} 31. Qf5+ {[%emt 0:00:22]} g6 {[%emt 0:00:34]} 32. Qxf7+ {[%emt 0:00:07]} Bg7 {[%emt 0:00:15] normal} 0-1

[Event "DVM U12w 2023"]
[Site "Magdeburg"]
[Date "2023.12.30"]
[Round "7"]
[White "Rabus, Luise"]
[Black "Satheesh, Yazhini"]
[Result "1-0"]
[WhiteElo "913"]
[BlackElo "859"]
[PlyCount "61"]
[EventDate "2022.12.27"]
[EventType "team-tourn"]
[EventRounds "7"]
[EventCountry "GER"]
[TimeControl "40/5400+30:1800+30"]
[WhiteClock "1:29:14"]
[BlackClock "1:09:25"]

1. e4 {[%emt 0:00:02]} e5 {[%emt 0:00:09]} 2. Nf3 {[%emt 0:00:07]} Nc6 {[%emt 0:00:11]} 3. Bc4 {[%emt 0:00:08]} Bc5 {[%emt 0:00:13]} 4. d3 {[%emt 0:00:12]} Nf6 {[%emt 0:00:24]} 5. c3 {[%emt 0:00:23]} d6 {[%emt 0:00:29]} 6. O-O {[%emt 0:00:18]} Bg4 {[%emt 0:00:25]} 7. h3 {[%emt 0:00:43]} Bh5 {[%emt 0:00:24]} 8. Re1 {[%emt 0:00:16]} O-O {[%emt 0:00:28]} 9. Nbd2 {[%emt 0:00:18]} h6 {[%emt 0:00:40]} 10. Nf1 {[%emt 0:00:15]} Nd7 {[%emt 0:00:49]} 11. Ng3 {[%emt 0:00:26]} Bg6 {[%emt 0:00:30]} 12. Nh2 {[%emt 0:00:26]} Qf6 {[%emt 0:00:27]} 13. Be3 {[%emt 0:01:52]} Bxe3 {[%emt 0:01:01]} 14. Rxe3 {[%emt 0:00:25]} a6 {[%emt 0:01:46]} 15. Rf3 {[%emt 0:01:20]} Qe7 16. Nf5 {[%emt 0:00:07]} Bxf5 {[%emt 0:02:42]} 17. Rxf5 {[%emt 0:01:46]} b5 {[%emt 0:01:07]} 18. Bb3 {[%emt 0:00:29]} Rab8 {[%emt 0:01:30]} 19. Rf3 {[%emt 0:01:21]} Nf6 {[%emt 0:02:49]} 20. Rg3 {[%emt 0:00:28]} Na5 {[%emt 0:05:07]} 21. Bc2 {[%emt 0:00:21]} c6 {[%emt 0:01:09]} 22. Ng4 {[%emt 0:00:11]} Nxg4 {[%emt 0:01:36]} 23. Qxg4 {[%emt 0:00:18]} Qf6 {[%emt 0:00:34]} 24. Re1 {[%emt 0:00:35]} Qg6 {[%emt 0:02:02]} 25. Qh4 {[%emt 0:00:43]} Qe6 {[%emt 0:02:19]} 26. b4 Qxa2 27. Qxh6 {[%emt 0:01:07]} g6 {[%emt 0:04:21]} 28. Re2 {[%emt 0:01:06]} Qa1+ {[%emt 0:00:46]} 29. Kh2 {[%emt 0:00:13]} Nb7 {[%emt 0:00:48]} 30. Bb3 {[%emt 0:00:38]} Qxc3 {[%emt 0:01:19]} 31. Rxg6# {[%emt 0:00:12] normal} 1-0

[Event "DVM U12w 2023"]
[Site "Magdeburg"]
[Date "2023.12.30"]
[Round "7"]
[White "Satheesh, Dharshini"]
[Black "Yamshchikova, Oleksandra"]
[Result "1/2-1/2"]
[WhiteElo "871"]
[BlackElo "956"]
[PlyCount "51"]
[EventDate "2022.12.27"]
[EventType "team-tourn"]
[EventRounds "7"]
[EventCountry "GER"]
[TimeControl "40/5400+30:1800+30"]
[WhiteClock "1:01:40"]
[BlackClock "1:26:11"]

1. e4 {[%emt 0:00:03]} e5 {[%emt 0:00:04]} 2. Nf3 {[%emt 0:00:09]} Nc6 {[%emt 0:00:07]} 3. Bc4 {[%emt 0:00:07]} Bc5 {[%emt 0:00:09]} 4. Nc3 {[%emt 0:00:20]} Nf6 {[%emt 0:00:29]} 5. d3 {[%emt 0:00:21]} d6 {[%emt 0:00:11]} 6. h3 {[%emt 0:01:17]} Be6 {[%emt 0:00:12]} 7. Bb5 {[%emt 0:00:19]} O-O {[%emt 0:00:26]} 8. Bxc6 {[%emt 0:01:02]} bxc6 {[%emt 0:00:17]} 9. O-O {[%emt 0:00:17]} h6 {[%emt 0:01:04]} 10. a3 {[%emt 0:01:46]} d5 {[%emt 0:00:28]} 11. b4 {[%emt 0:01:39]} Bb6 {[%emt 0:00:25]} 12. Bb2 {[%emt 0:01:04]} d4 {[%emt 0:01:19]} 13. Ne2 {[%emt 0:00:43]} c5 {[%emt 0:00:34]} 14. Qd2 {[%emt 0:02:52]} c4 {[%emt 0:00:31]} 15. dxc4 {[%emt 0:01:22]} Bxc4 {[%emt 0:00:27]} 16. Nxe5 {[%emt 0:00:37]} Bxe2 {[%emt 0:01:01]} 17. Qxe2 {[%emt 0:00:57]} Re8 {[%emt 0:00:27]} 18. Nf3 {[%emt 0:02:37]} Rxe4 {[%emt 0:00:25]} 19. Qc4 {[%emt 0:06:05]} Qd7 {[%emt 0:01:21]} 20. Rad1 {[%emt 0:04:06]} Rd8 {[%emt 0:00:20]} 21. c3 {[%emt 0:02:09]} d3 {[%emt 0:01:28]} 22. Qb3 {[%emt 0:02:31]} Re6 {[%emt 0:02:21]} 23. Rd2 {[%emt 0:03:37]} Rd6 {[%emt 0:00:36]} 24. Ne5 {[%emt 0:01:27]} Qe7 {[%emt 0:00:55]} 25. c4 {[%emt 0:02:31]} c5 {[%emt 0:01:12]} 26. Rfd1 {[%emt 0:01:52] normal} 1/2-1/2

[Event "DVM U12w 2023"]
[Site "Magdeburg"]
[Date "2023.12.30"]
[Round "7"]
[White "Rätsch, Elina"]
[Black "Özdemir, Anna Valentina"]
[Result "1/2-1/2"]
[WhiteElo "869"]
[BlackElo "693"]
[PlyCount "69"]
[EventDate "2022.12.27"]
[EventType "team-tourn"]
[EventRounds "7"]
[EventCountry "GER"]
[TimeControl "40/5400+30:1800+30"]
[WhiteClock "1:14:18"]
[BlackClock "1:19:33"]

1. d4 {[%emt 0:00:04]} d5 {[%emt 0:00:07]} 2. Nf3 {[%emt 0:00:14]} Nf6 {[%emt 0:00:15]} 3. e3 {[%emt 0:00:13]} Bg4 {[%emt 0:00:10]} 4. c4 {[%emt 0:00:13]} dxc4 {[%emt 0:00:21]} 5. Bxc4 {[%emt 0:01:24]} e6 {[%emt 0:02:09]} 6. Qb3 {[%emt 0:00:00]} Nc6 {[%emt 0:00:23]} 7. Qxb7 {[%emt 0:00:22]} Na5 {[%emt 0:01:07]} 8. Qb5+ {[%emt 0:00:20]} c6 {[%emt 0:00:25]} 9. Qa4 {[%emt 0:01:14]} Rb8 {[%emt 0:00:27]} 10. Nbd2 {[%emt 0:01:40]} Bb4 {[%emt 0:00:19]} 11. a3 {[%emt 0:01:57]} Bd6 {[%emt 0:00:57]} 12. e4 {[%emt 0:00:54]} Bc7 {[%emt 0:01:12]} 13. e5 {[%emt 0:00:22]} Nd7 {[%emt 0:00:27]} 14. O-O {[%emt 0:02:49]} O-O {[%emt 0:00:13]} 15. Ne1 {[%emt 0:03:44]} Nxc4 {[%emt 0:00:47]} 16. Qxc4 {[%emt 0:00:30]} Nb6 {[%emt 0:00:31]} 17. Qd3 {[%emt 0:00:43]} c5 {[%emt 0:00:18]} 18. dxc5 {[%emt 0:00:59]} Qxd3 {[%emt 0:00:49]} 19. Nxd3 {[%emt 0:00:42]} Nd7 {[%emt 0:00:35]} 20. f3 {[%emt 0:00:54]} Bf5 {[%emt 0:00:14]} 21. Ne4 {[%emt 0:00:21]} Rb3 {[%emt 0:00:52]} 22. Rd1 {[%emt 0:01:29]} h6 {[%emt 0:06:06]} 23. Nb4 {[%emt 0:00:55]} Nxe5 {[%emt 0:00:41]} 24. Nd2 {[%emt 0:01:08]} Rxb4 {[%emt 0:03:07]} 25. axb4 {[%emt 0:00:21]} Bc2 {[%emt 0:00:51]} 26. Re1 {[%emt 0:00:42]} Nd3 {[%emt 0:00:14]} 27. Re4 {[%emt 0:01:01]} Nxc1 {[%emt 0:00:35]} 28. Rc4 {[%emt 0:00:38]} Ne2+ {[%emt 0:01:01]} 29. Kf2 {[%emt 0:00:44]} Bd3 {[%emt 0:00:20]} 30. Rxa7 {[%emt 0:03:52]} Bb8 {[%emt 0:01:19]} 31. Rb7 {[%emt 0:00:59]} Bxc4 {[%emt 0:00:00]} 32. Nxc4 {[%emt 0:00:27]} Nf4 {[%emt 0:00:02]} 33. Nb6 {[%emt 0:00:34]} Rd8 {[%emt 0:00:33]} 34. Ke3 {[%emt 0:00:43]} Nxg2+ {[%emt 0:00:22]} 35. Kf2 {[%emt 0:00:33] normal} 1/2-1/2